[Event "Live Chess"]
[Site "Chess.com"]
[Date "2023.05.21"]
[Round "-"]
[White "ACx04"]
[Black "RoaringKnights"]
[Result "0-1"]
[WhiteElo "414"]
[BlackElo "1034"]
[TimeControl "300"]
[EndTime "1:58:06 PDT"]
[Termination "RoaringKnights won by resignation"]

1. e4 {[%clk 0:04:58.3]} 1... c6 {[%clk 0:04:59.5]} 2. Bc4 {[%clk 0:04:57.8]}
2... d5 {[%clk 0:04:58.3]} 3. exd5 {[%clk 0:04:56.5]} 3... cxd5 {[%clk
0:04:57.3]} 4. Bb3 {[%clk 0:04:55.1]} 4... Nc6 {[%clk 0:04:55.2]} 5. d4 {[%clk
0:04:52.7]} 5... Bf5 {[%clk 0:04:50.5]} 6. a3 {[%clk 0:04:50.6]} 6... e6 {[%clk
0:04:49.6]} 7. Bf4 {[%clk 0:04:48.4]} 7... Qa5+ {[%clk 0:04:45.8]} 8. c3 {[%clk
0:04:46.1]} 8... Nf6 {[%clk 0:04:43]} 9. Nd2 {[%clk 0:04:43.9]} 9... Ne4 {[%clk
0:04:40.3]} 10. Qe2 {[%clk 0:04:31.6]} 10... Nxd2 {[%clk 0:04:35.5]} 11. Kd1
{[%clk 0:04:28]} 11... Nxb3 {[%clk 0:04:32.7]} 12. Rb1 {[%clk 0:04:26.2]} 12...
Bxb1 {[%clk 0:04:30.9]} 13. Ke1 {[%clk 0:04:17.3]} 13... Be7 {[%clk 0:04:20.5]}
14. Nf3 {[%clk 0:04:12.4]} 14... Be4 {[%clk 0:04:08.3]} 15. h3 {[%clk
0:04:02.2]} 15... Bxf3 {[%clk 0:04:06.4]} 16. Qxf3 {[%clk 0:04:00.3]} 16...
Nbxd4 {[%clk 0:03:56.3]} 17. Qd3 {[%clk 0:03:58.5]} 17... Nf5 {[%clk 0:03:50.2]}
18. g4 {[%clk 0:03:55.6]} 18... Nfd4 {[%clk 0:03:46.5]} 19. b4 {[%clk
0:03:51.6]} 19... Qxa3 {[%clk 0:03:42.8]} 20. Kf1 {[%clk 0:03:49]} 20... Nb3
{[%clk 0:03:30.2]} 21. h4 {[%clk 0:03:42.1]} 21... Qa6 {[%clk 0:03:21.6]} 22.
Qxa6 {[%clk 0:03:27.7]} 22... bxa6 {[%clk 0:03:20.3]} 23. Rh3 {[%clk 0:03:23.1]}
23... O-O {[%clk 0:03:12.1]} 24. Kg2 {[%clk 0:03:13.3]} 24... d4 {[%clk
0:03:10.2]} 25. cxd4 {[%clk 0:03:11.8]} 25... Nbxd4 {[%clk 0:03:09]} 26. f3
{[%clk 0:03:06.6]} 26... Bxb4 {[%clk 0:03:07.6]} 27. Kg3 {[%clk 0:03:05.1]}
27... Rab8 {[%clk 0:03:06.3]} 28. Bxb8 {[%clk 0:03:03.5]} 28... Rxb8 {[%clk
0:03:04.6]} 29. f4 {[%clk 0:03:01.7]} 29... Be1+ {[%clk 0:03:02]} 30. Kg2 {[%clk
0:02:58.4]} 30... Rb2+ {[%clk 0:02:59.5]} 31. Kh1 {[%clk 0:02:53.5]} 31... Rb1
{[%clk 0:02:49.3]} 32. Kh2 {[%clk 0:02:50.7]} 32... Ne2 {[%clk 0:02:45.5]} 33.
Kg2 {[%clk 0:02:48.5]} 33... Nxf4+ {[%clk 0:02:43.9]} 34. Kf3 {[%clk 0:02:47.6]}
34... Nxh3 {[%clk 0:02:42.9]} 35. Ke3 {[%clk 0:02:40.5]} 35... Rb3+ {[%clk
0:02:38.8]} 0-1

[Event "Live Chess"]
[Site "Chess.com"]
[Date "2023.05.21"]
[Round "-"]
[White "Cimon"]
[Black "WelshTiger"]
[Result "0-1"]
[WhiteElo "1840"]
[BlackElo "2350"]
[TimeControl "300"]
[EndTime "1:58:18 PDT"]
[Termination "WelshTiger won by resignation"]

1. Nf3 {[%clk 0:04:57.5]} 1... d5 {[%clk 0:04:51.9]} 2. d4 {[%clk 0:04:56.1]}
2... Nf6 {[%clk 0:04:50.4]} 3. c4 {[%clk 0:04:54.7]} 3... e6 {[%clk 0:04:49]} 4.
g3 {[%clk 0:04:53.6]} 4... c5 {[%clk 0:04:46.6]} 5. Bg2 {[%clk 0:04:48.9]} 5...
Nc6 {[%clk 0:04:44.9]} 6. dxc5 {[%clk 0:04:44.2]} 6... d4 {[%clk 0:04:39.9]} 7.
O-O {[%clk 0:04:39.5]} 7... Bxc5 {[%clk 0:04:38.4]} 8. a3 {[%clk 0:04:35.8]}
8... a5 {[%clk 0:04:37.4]} 9. Bg5 {[%clk 0:04:33.3]} 9... h6 {[%clk 0:04:30.6]}
10. Bf4 {[%clk 0:04:25.9]} 10... Qe7 {[%clk 0:04:27.4]} 11. Ne5 {[%clk
0:03:42.6]} 11... Bd7 {[%clk 0:04:13.6]} 12. Nxd7 {[%clk 0:03:37.4]} 12... Qxd7
{[%clk 0:04:11.8]} 13. h4 {[%clk 0:03:25.3]} 13... O-O {[%clk 0:04:09.7]} 14.
Qc2 {[%clk 0:03:08.8]} 14... Rfe8 {[%clk 0:04:04.2]} 15. Bd2 {[%clk 0:02:52.6]}
15... e5 {[%clk 0:04:00.4]} 16. Qa4 {[%clk 0:02:32.9]} 16... e4 {[%clk
0:03:55.3]} 17. e3 {[%clk 0:02:25]} 17... Qd6 {[%clk 0:03:20.9]} 18. Bh3 {[%clk
0:02:17.1]} 18... dxe3 {[%clk 0:03:16.8]} 19. Bxe3 {[%clk 0:02:14.8]} 19... Bxe3
{[%clk 0:03:15.8]} 20. fxe3 {[%clk 0:02:13.7]} 20... Qxg3+ {[%clk 0:03:15.1]}
0-1

[Event "Live Chess"]
[Site "Chess.com"]
[Date "2023.05.21"]
[Round "-"]
[White "Delacorta"]
[Black "YrrriKharkiv"]
[Result "0-1"]
[WhiteElo "1414"]
[BlackElo "2058"]
[TimeControl "300"]
[EndTime "1:58:30 PDT"]
[Termination "YrrriKharkiv won by resignation"]

1. d4 {[%clk 0:04:58.3]} 1... Nf6 {[%clk 0:04:58.2]} 2. Nf3 {[%clk 0:04:57.5]}
2... d5 {[%clk 0:04:54.7]} 3. e3 {[%clk 0:04:56.8]} 3... e6 {[%clk 0:04:54]} 4.
Bd3 {[%clk 0:04:55.7]} 4... c5 {[%clk 0:04:53.4]} 5. b3 {[%clk 0:04:54.9]} 5...
cxd4 {[%clk 0:04:52.3]} 6. exd4 {[%clk 0:04:54.8]} 6... Nc6 {[%clk 0:04:51.4]}
7. Bb2 {[%clk 0:04:54.1]} 7... Bb4+ {[%clk 0:04:46.8]} 8. Nbd2 {[%clk
0:04:51.9]} 8... O-O {[%clk 0:04:44.8]} 9. O-O {[%clk 0:04:50.4]} 9... Qc7
{[%clk 0:04:39.5]} 10. Ne5 {[%clk 0:04:48.9]} 10... Bd6 {[%clk 0:04:38.2]} 11.
f4 {[%clk 0:04:47.4]} 11... Ne8 {[%clk 0:04:35.4]} 12. Rf3 {[%clk 0:04:42.2]}
12... f6 {[%clk 0:04:32.2]} 13. Bxh7+ {[%clk 0:04:40.2]} 13... Kxh7 {[%clk
0:04:25.5]} 14. Rh3+ {[%clk 0:04:39.1]} 14... Kg8 {[%clk 0:04:23.8]} 15. Ng6
{[%clk 0:04:25.5]} 15... f5 {[%clk 0:04:03.8]} 16. Nxf8 {[%clk 0:03:52.2]} 16...
Bxf8 {[%clk 0:03:55.2]} 17. Qh5 {[%clk 0:03:50.8]} 17... Bd7 {[%clk 0:03:32.7]}
18. Qh8+ {[%clk 0:03:31.7]} 18... Kf7 {[%clk 0:03:30.8]} 19. Qh5+ {[%clk
0:03:29.8]} 19... g6 {[%clk 0:03:11]} 20. Qh7+ {[%clk 0:02:55.9]} 20... Bg7
{[%clk 0:03:01.2]} 21. Rg3 {[%clk 0:02:50]} 21... Qxf4 {[%clk 0:02:55.1]} 22.
Qxg6+ {[%clk 0:02:48.2]} 22... Ke7 {[%clk 0:02:44.7]} 23. Nf3 {[%clk 0:02:01.7]}
23... Nxd4 {[%clk 0:02:28.2]} 24. Nxd4 {[%clk 0:01:32.9]} 24... Bxd4+ {[%clk
0:02:26.1]} 25. Bxd4 {[%clk 0:01:30.7]} 25... Qxd4+ {[%clk 0:02:24.6]} 26. Kf1
{[%clk 0:01:11.6]} 26... Qxa1+ {[%clk 0:02:22.5]} 27. Kf2 {[%clk 0:01:07.2]}
27... Qd4+ {[%clk 0:02:21.6]} 28. Kf1 {[%clk 0:00:59.3]} 28... Qf6 {[%clk
0:02:18.9]} 29. Qh7+ {[%clk 0:00:55.1]} 29... Qf7 {[%clk 0:02:02.4]} 30. Qh4+
{[%clk 0:00:48.3]} 30... Nf6 {[%clk 0:02:01.3]} 31. Qb4+ {[%clk 0:00:46.9]}
31... Ke8 {[%clk 0:01:58.2]} 32. Qxb7 {[%clk 0:00:44.5]} 32... Rd8 {[%clk
0:01:57]} 33. Rc3 {[%clk 0:00:42.1]} 33... Ne4 {[%clk 0:01:52.6]} 34. Rc7 {[%clk
0:00:38.5]} 34... Nd6 {[%clk 0:01:44.2]} 35. Qb4 {[%clk 0:00:30.5]} 35... Qe7
{[%clk 0:01:40]} 36. Qd2 {[%clk 0:00:19.1]} 36... Bb5+ {[%clk 0:01:37.8]} 37.
Kf2 {[%clk 0:00:17.5]} 37... Qxc7 {[%clk 0:01:36.2]} 0-1

[Event "Live Chess"]
[Site "Chess.com"]
[Date "2023.05.21"]
[Round "-"]
[White "Denz14"]
[Black "Shepherds_Pie"]
[Result "0-1"]
[WhiteElo "1046"]
[BlackElo "1926"]
[TimeControl "300"]
[EndTime "1:58:36 PDT"]
[Termination "Shepherds_Pie won by checkmate"]

1. e4 {[%clk 0:04:55.2]} 1... e6 {[%clk 0:04:58.7]} 2. Nf3 {[%clk 0:04:54]} 2...
c5 {[%clk 0:04:55.3]} 3. c3 {[%clk 0:04:51.2]} 3... Nf6 {[%clk 0:04:53.4]} 4. d3
{[%clk 0:04:49.6]} 4... d5 {[%clk 0:04:52]} 5. e5 {[%clk 0:04:48.2]} 5... Nfd7
{[%clk 0:04:50.7]} 6. Bg5 {[%clk 0:04:43.6]} 6... Qb6 {[%clk 0:04:49]} 7. Qc2
{[%clk 0:04:39.8]} 7... Nc6 {[%clk 0:04:47]} 8. Na3 {[%clk 0:04:33.5]} 8...
Ndxe5 {[%clk 0:04:43.8]} 9. Nxe5 {[%clk 0:04:27.7]} 9... Nxe5 {[%clk 0:04:42.5]}
10. Be2 {[%clk 0:04:19.6]} 10... Bd6 {[%clk 0:04:40.2]} 11. Bf4 {[%clk
0:04:16.5]} 11... Bd7 {[%clk 0:04:37.9]} 12. O-O {[%clk 0:04:12.8]} 12... Ng6
{[%clk 0:04:36.5]} 13. Bxd6 {[%clk 0:04:08.7]} 13... Qxd6 {[%clk 0:04:35.3]} 14.
Qd2 {[%clk 0:03:55.3]} 14... O-O {[%clk 0:04:32.9]} 15. Nc2 {[%clk 0:03:52.3]}
15... e5 {[%clk 0:04:29.8]} 16. Ne3 {[%clk 0:03:50.1]} 16... f5 {[%clk
0:04:25.9]} 17. g3 {[%clk 0:03:41.7]} 17... f4 {[%clk 0:04:21.3]} 18. Ng4 {[%clk
0:03:35.3]} 18... f3 {[%clk 0:04:18]} 19. Bd1 {[%clk 0:03:31.9]} 19... Bxg4
{[%clk 0:04:16.6]} 20. Qg5 {[%clk 0:03:22.4]} 20... Qe6 {[%clk 0:04:06.2]} 21.
Re1 {[%clk 0:03:20.6]} 21... Rae8 {[%clk 0:04:02.4]} 22. d4 {[%clk 0:03:18.2]}
22... cxd4 {[%clk 0:04:00.1]} 23. cxd4 {[%clk 0:03:16.3]} 23... e4 {[%clk
0:03:59.2]} 24. Bb3 {[%clk 0:03:12.2]} 24... Rd8 {[%clk 0:03:53.8]} 25. Rac1
{[%clk 0:03:09]} 25... h6 {[%clk 0:03:52.1]} 26. Qe3 {[%clk 0:03:00.7]} 26...
Kh7 {[%clk 0:03:50]} 27. Rc7 {[%clk 0:02:56.6]} 27... Rd7 {[%clk 0:03:45.6]} 28.
Rec1 {[%clk 0:02:54]} 28... Rxc7 {[%clk 0:03:44.1]} 29. Rxc7 {[%clk 0:02:52.5]}
29... Rf7 {[%clk 0:03:42.9]} 30. Qc3 {[%clk 0:02:49.6]} 30... Bh3 {[%clk
0:03:34.5]} 31. Qc5 {[%clk 0:02:42.3]} 31... Nf4 {[%clk 0:03:28.9]} 32. Bxd5
{[%clk 0:02:20.4]} 32... Qxd5 {[%clk 0:03:19.1]} 33. Rxf7 {[%clk 0:02:16.2]}
33... Qxf7 {[%clk 0:03:14.5]} 34. gxf4 {[%clk 0:02:11.2]} 34... Qg6+ {[%clk
0:03:12.1]} 35. Kh1 {[%clk 0:02:08.9]} 35... Qg2# {[%clk 0:03:10.4]} 0-1

[Event "Live Chess"]
[Site "Chess.com"]
[Date "2023.05.21"]
[Round "-"]
[White "JohanKjeldahl"]
[Black "TheSmoulderingMaster"]
[Result "0-1"]
[WhiteElo "1895"]
[BlackElo "1697"]
[TimeControl "300"]
[EndTime "1:58:39 PDT"]
[Termination "TheSmoulderingMaster won by resignation"]

1. e4 {[%clk 0:04:57.3]} 1... c5 {[%clk 0:04:58.7]} 2. Nf3 {[%clk 0:04:55.5]}
2... d6 {[%clk 0:04:57.3]} 3. d4 {[%clk 0:04:53.9]} 3... cxd4 {[%clk 0:04:56.7]}
4. Nxd4 {[%clk 0:04:52.6]} 4... Nf6 {[%clk 0:04:56]} 5. Nc3 {[%clk 0:04:51.7]}
5... g6 {[%clk 0:04:55.5]} 6. Be3 {[%clk 0:04:50]} 6... Bg7 {[%clk 0:04:54.9]}
7. f3 {[%clk 0:04:49.4]} 7... O-O {[%clk 0:04:54.1]} 8. Bc4 {[%clk 0:04:48.8]}
8... Nc6 {[%clk 0:04:53.3]} 9. Qd2 {[%clk 0:04:47.7]} 9... d5 {[%clk 0:04:52.1]}
10. exd5 {[%clk 0:04:41.7]} 10... Ne5 {[%clk 0:04:51.2]} 11. Bb3 {[%clk
0:04:38.7]} 11... a5 {[%clk 0:04:49.4]} 12. O-O-O {[%clk 0:04:35.4]} 12... a4
{[%clk 0:04:48.1]} 13. Nxa4 {[%clk 0:04:26.4]} 13... Rxa4 {[%clk 0:04:45.4]} 14.
Bxa4 {[%clk 0:04:23.7]} 14... Nc4 {[%clk 0:04:44.8]} 15. Qd3 {[%clk 0:04:16.6]}
15... Qxd5 {[%clk 0:04:35.4]} 16. Bb3 {[%clk 0:04:10.5]} 16... b5 {[%clk
0:04:33.4]} 17. Rhe1 {[%clk 0:04:03]} 17... Ba6 {[%clk 0:04:19.5]} 18. Ne2
{[%clk 0:03:50.3]} 18... Qe5 {[%clk 0:04:15.9]} 19. Bd4 {[%clk 0:03:44.1]} 19...
Qg5+ {[%clk 0:04:13.5]} 20. f4 {[%clk 0:03:38.7]} 20... Qxg2 {[%clk 0:04:11.2]}
21. f5 {[%clk 0:03:23.9]} 21... Rd8 {[%clk 0:04:01.4]} 22. fxg6 {[%clk
0:03:18.5]} 22... hxg6 {[%clk 0:04:00.3]} 23. Qg3 {[%clk 0:03:07.3]} 23... Qc6
{[%clk 0:03:37]} 24. Bc3 {[%clk 0:03:00.4]} 24... Rc8 {[%clk 0:03:31.5]} 25. Nd4
{[%clk 0:02:56.9]} 25... Qc5 {[%clk 0:03:23.8]} 26. h4 {[%clk 0:02:29.9]} 26...
b4 {[%clk 0:03:20.1]} 27. Bd2 {[%clk 0:02:14.6]} 27... Qxd4 {[%clk 0:03:16.8]}
28. Bxc4 {[%clk 0:02:08.3]} 28... Bxc4 {[%clk 0:03:15.2]} 29. Rxe7 {[%clk
0:01:55.9]} 29... Bxa2 {[%clk 0:03:08.3]} 30. Bg5 {[%clk 0:01:37.9]} 30... Qc5
{[%clk 0:03:04.2]} 31. Qd3 {[%clk 0:01:24.3]} 31... Qxe7 {[%clk 0:03:01.3]} 32.
Bxf6 {[%clk 0:01:14.9]} 32... Qxf6 {[%clk 0:02:59.2]} 0-1

[Event "Live Chess"]
[Site "Chess.com"]
[Date "2023.05.21"]
[Round "-"]
[White "1PRK1"]
[Black "jagbama"]
[Result "1-0"]
[WhiteElo "1349"]
[BlackElo "1159"]
[TimeControl "300"]
[EndTime "1:58:47 PDT"]
[Termination "1PRK1 won by resignation"]

1. e4 {[%clk 0:04:58.1]} 1... e5 {[%clk 0:04:58.8]} 2. Nf3 {[%clk 0:04:55.9]}
2... Nc6 {[%clk 0:04:58]} 3. Bb5 {[%clk 0:04:54.4]} 3... Bc5 {[%clk 0:04:54.2]}
4. c3 {[%clk 0:04:53.4]} 4... Nf6 {[%clk 0:04:49.5]} 5. d3 {[%clk 0:04:51.5]}
5... O-O {[%clk 0:04:43.8]} 6. O-O {[%clk 0:04:49.5]} 6... d6 {[%clk 0:04:39.7]}
7. h3 {[%clk 0:04:48.3]} 7... a6 {[%clk 0:04:31.2]} 8. Ba4 {[%clk 0:04:46.2]}
8... b5 {[%clk 0:04:25.4]} 9. Bc2 {[%clk 0:04:45.2]} 9... Nh5 {[%clk 0:04:04.1]}
10. Nxe5 {[%clk 0:04:41.3]} 10... Qh4 {[%clk 0:03:27.5]} 11. Nxc6 {[%clk
0:04:32.9]} 11... Bxh3 {[%clk 0:03:26.5]} 12. Ne7+ {[%clk 0:04:26.4]} 12... Kh8
{[%clk 0:03:24.3]} 13. Nf5 {[%clk 0:04:22.1]} 13... Bxf5 {[%clk 0:03:16.6]} 14.
exf5 {[%clk 0:04:18]} 14... g6 {[%clk 0:03:08.6]} 15. Qf3 {[%clk 0:04:07.4]}
15... gxf5 {[%clk 0:02:55.6]} 16. d4 {[%clk 0:04:04.6]} 16... Ba7 {[%clk
0:02:30.7]} 17. Bxf5 {[%clk 0:03:59.8]} 17... Qg4 {[%clk 0:02:30.1]} 18. Bxg4
{[%clk 0:03:55.3]} 1-0

[Event "Live Chess"]
[Site "Chess.com"]
[Date "2023.05.21"]
[Round "-"]
[White "chessfiction"]
[Black "MarkLim1"]
[Result "1-0"]
[WhiteElo "2332"]
[BlackElo "1721"]
[TimeControl "300"]
[EndTime "1:58:50 PDT"]
[Termination "chessfiction won by resignation"]

1. e4 {[%clk 0:04:59.6]} 1... e6 {[%clk 0:04:58.2]} 2. d4 {[%clk 0:04:59.5]}
2... d5 {[%clk 0:04:57.2]} 3. Nc3 {[%clk 0:04:59.4]} 3... Nf6 {[%clk 0:04:55.4]}
4. e5 {[%clk 0:04:58]} 4... Nfd7 {[%clk 0:04:54.9]} 5. Nce2 {[%clk 0:04:57.8]}
5... c5 {[%clk 0:04:54.2]} 6. f4 {[%clk 0:04:57.7]} 6... Nc6 {[%clk 0:04:52.1]}
7. Nf3 {[%clk 0:04:57.6]} 7... b5 {[%clk 0:04:50.6]} 8. h4 {[%clk 0:04:55.9]}
8... b4 {[%clk 0:04:49.5]} 9. h5 {[%clk 0:04:55.2]} 9... Ba6 {[%clk 0:04:43.6]}
10. c3 {[%clk 0:04:51.5]} 10... bxc3 {[%clk 0:04:40.1]} 11. bxc3 {[%clk
0:04:48.1]} 11... Qa5 {[%clk 0:04:38.8]} 12. Bd2 {[%clk 0:04:46.3]} 12... Qb6
{[%clk 0:04:37.8]} 13. Rb1 {[%clk 0:04:43.5]} 13... Qc7 {[%clk 0:04:32.9]} 14.
Qa4 {[%clk 0:04:38.1]} 14... Bxe2 {[%clk 0:04:28.9]} 15. Bxe2 {[%clk 0:04:35.5]}
15... h6 {[%clk 0:04:25.1]} 16. O-O {[%clk 0:04:32.8]} 16... Be7 {[%clk
0:04:23.3]} 17. g4 {[%clk 0:04:21.5]} 17... O-O {[%clk 0:04:21.5]} 18. f5 {[%clk
0:04:20.7]} 18... exf5 {[%clk 0:04:19.7]} 19. gxf5 {[%clk 0:04:20.6]} 19... Nb6
{[%clk 0:04:08.5]} 20. Qc2 {[%clk 0:04:14.2]} 20... cxd4 {[%clk 0:04:06.5]} 21.
cxd4 {[%clk 0:04:13.1]} 21... Rac8 {[%clk 0:03:59.8]} 22. Rfc1 {[%clk
0:04:07.3]} 22... Qd7 {[%clk 0:03:54.5]} 23. Bb5 {[%clk 0:04:03.3]} 23... Nxd4
{[%clk 0:03:44.2]} 24. Bxd7 {[%clk 0:04:00.1]} 24... Nxc2 {[%clk 0:03:42.7]} 25.
Bxc8 {[%clk 0:03:58]} 25... Rxc8 {[%clk 0:03:38.8]} 26. Rb2 {[%clk 0:03:47.6]}
26... Na3 {[%clk 0:03:21.3]} 27. Rxc8+ {[%clk 0:03:44.5]} 27... Nxc8 {[%clk
0:03:19.1]} 28. Rb8 {[%clk 0:03:44.1]} 1-0

[Event "Live Chess"]
[Site "Chess.com"]
[Date "2023.05.21"]
[Round "-"]
[White "LiamClery2020"]
[Black "TKDRyan"]
[Result "1-0"]
[WhiteElo "2030"]
[BlackElo "1136"]
[TimeControl "300"]
[EndTime "1:58:58 PDT"]
[Termination "LiamClery2020 won by resignation"]

1. e4 {[%clk 0:04:59.3]} 1... c5 {[%clk 0:04:58.4]} 2. Nf3 {[%clk 0:04:57.6]}
2... d6 {[%clk 0:04:57.6]} 3. Bb5+ {[%clk 0:04:56.5]} 3... Nc6 {[%clk
0:04:54.5]} 4. O-O {[%clk 0:04:52.4]} 4... Bd7 {[%clk 0:04:53.4]} 5. Bxc6 {[%clk
0:04:50.6]} 5... Bxc6 {[%clk 0:04:52]} 6. Re1 {[%clk 0:04:50.5]} 6... e6 {[%clk
0:04:49.7]} 7. c3 {[%clk 0:04:48.8]} 7... Nf6 {[%clk 0:04:48.3]} 8. d4 {[%clk
0:04:48.3]} 8... cxd4 {[%clk 0:04:47]} 9. cxd4 {[%clk 0:04:47.5]} 9... Bxe4
{[%clk 0:04:42.5]} 10. Nc3 {[%clk 0:04:45.2]} 10... Bc6 {[%clk 0:04:37.5]} 11.
d5 {[%clk 0:04:43.1]} 11... Nxd5 {[%clk 0:04:32.5]} 12. Nxd5 {[%clk 0:04:41.5]}
12... Bxd5 {[%clk 0:04:24.7]} 13. Qxd5 {[%clk 0:04:41.4]} 13... Be7 {[%clk
0:04:21.6]} 14. Qxb7 {[%clk 0:04:35.5]} 14... O-O {[%clk 0:04:18]} 15. Be3
{[%clk 0:04:29.7]} 15... Rb8 {[%clk 0:04:14.9]} 16. Qxa7 {[%clk 0:04:28.5]}
16... Rxb2 {[%clk 0:04:13.6]} 17. Rac1 {[%clk 0:04:26.7]} 17... Bf6 {[%clk
0:04:07.9]} 18. Bd4 {[%clk 0:04:23.3]} 18... Bxd4 {[%clk 0:04:01.4]} 19. Nxd4
{[%clk 0:04:23.2]} 19... Qf6 {[%clk 0:03:48]} 20. Nf3 {[%clk 0:04:15.6]} 20...
d5 {[%clk 0:03:19.7]} 21. Qa6 {[%clk 0:04:04.7]} 21... Rbb8 {[%clk 0:03:05.6]}
22. h3 {[%clk 0:03:59.6]} 22... Ra8 {[%clk 0:03:04.3]} 23. Qe2 {[%clk 0:03:57]}
23... Rfb8 {[%clk 0:02:59.2]} 24. Ne5 {[%clk 0:03:55.3]} 24... Rb4 {[%clk
0:02:02.8]} 25. Qa6 {[%clk 0:03:48.6]} 25... Rxa6 {[%clk 0:02:00.9]} 26. Rc8+
{[%clk 0:03:46.7]} 1-0

[Event "Live Chess"]
[Site "Chess.com"]
[Date "2023.05.21"]
[Round "-"]
[White "whitedjohn"]
[Black "RamsayFlayer"]
[Result "0-1"]
[WhiteElo "1640"]
[BlackElo "1969"]
[TimeControl "300"]
[EndTime "1:59:03 PDT"]
[Termination "RamsayFlayer won on time"]

1. e4 {[%clk 0:04:57.8]} 1... e5 {[%clk 0:04:58.7]} 2. Nf3 {[%clk 0:04:56.5]}
2... Nc6 {[%clk 0:04:50.2]} 3. Bb5 {[%clk 0:04:54.1]} 3... a6 {[%clk 0:04:49.1]}
4. Ba4 {[%clk 0:04:52.9]} 4... Nf6 {[%clk 0:04:47.9]} 5. O-O {[%clk 0:04:51.5]}
5... Be7 {[%clk 0:04:47.5]} 6. Re1 {[%clk 0:04:50]} 6... b5 {[%clk 0:04:47.1]}
7. Bb3 {[%clk 0:04:49]} 7... d6 {[%clk 0:04:46.8]} 8. c3 {[%clk 0:04:47.8]} 8...
O-O {[%clk 0:04:46.1]} 9. h3 {[%clk 0:04:47]} 9... Na5 {[%clk 0:04:45.7]} 10.
Bc2 {[%clk 0:04:45.7]} 10... c5 {[%clk 0:04:45.4]} 11. d4 {[%clk 0:04:44.6]}
11... Qc7 {[%clk 0:04:44.7]} 12. Nbd2 {[%clk 0:04:42.8]} 12... cxd4 {[%clk
0:04:44.4]} 13. cxd4 {[%clk 0:04:41.7]} 13... Bb7 {[%clk 0:04:44.2]} 14. Nf1
{[%clk 0:04:39.3]} 14... Rac8 {[%clk 0:04:42]} 15. Bb1 {[%clk 0:04:32.1]} 15...
Nc4 {[%clk 0:04:27.5]} 16. b3 {[%clk 0:04:24.3]} 16... Nb6 {[%clk 0:04:26.2]}
17. dxe5 {[%clk 0:04:10.9]} 17... dxe5 {[%clk 0:04:25.1]} 18. Bg5 {[%clk
0:04:03.4]} 18... h6 {[%clk 0:04:22.4]} 19. Bh4 {[%clk 0:04:01.6]} 19... Rfd8
{[%clk 0:04:12.2]} 20. Qe2 {[%clk 0:03:59.6]} 20... Qc3 {[%clk 0:04:00.2]} 21.
Qe3 {[%clk 0:03:24.9]} 21... Qxa1 {[%clk 0:03:53.1]} 22. Qxb6 {[%clk 0:03:23.6]}
22... Ba8 {[%clk 0:03:33]} 23. Bxf6 {[%clk 0:03:12.5]} 23... Bxf6 {[%clk
0:03:30.4]} 24. Qxa6 {[%clk 0:03:09.4]} 24... Bc6 {[%clk 0:02:52.8]} 25. Bd3
{[%clk 0:02:55.7]} 25... Qc3 {[%clk 0:02:41.2]} 26. Bxb5 {[%clk 0:02:50.2]}
26... Bxb5 {[%clk 0:02:41.1]} 27. Qxb5 {[%clk 0:02:48.6]} 27... Rd3 {[%clk
0:02:23.3]} 28. N1h2 {[%clk 0:02:05.9]} 28... Rcd8 {[%clk 0:02:10.5]} 29. b4
{[%clk 0:01:50.8]} 29... Rd1 {[%clk 0:02:07.6]} 30. Rxd1 {[%clk 0:01:45.6]}
30... Rxd1+ {[%clk 0:02:07.5]} 31. Nf1 {[%clk 0:01:43.7]} 31... Qd3 {[%clk
0:01:58.6]} 32. Qxd3 {[%clk 0:01:41.3]} 32... Rxd3 {[%clk 0:01:57.4]} 33. N1d2
{[%clk 0:01:36.4]} 33... Ra3 {[%clk 0:01:53]} 34. Nc4 {[%clk 0:01:31.8]} 34...
Rxa2 {[%clk 0:01:51]} 35. Ncxe5 {[%clk 0:01:28]} 35... Rb2 {[%clk 0:01:40.7]}
36. Nd3 {[%clk 0:01:19.8]} 36... Rb3 {[%clk 0:01:39.7]} 37. Nfe1 {[%clk
0:01:14.2]} 37... Bc3 {[%clk 0:01:36.8]} 38. Nc2 {[%clk 0:00:59.2]} 38... Rb1+
{[%clk 0:01:10.4]} 39. Kh2 {[%clk 0:00:56.8]} 39... Rd1 {[%clk 0:01:10.1]} 40.
Nc5 {[%clk 0:00:38]} 40... Rd2 {[%clk 0:01:05.8]} 41. Ne3 {[%clk 0:00:26.6]}
41... Rxf2 {[%clk 0:00:56.1]} 42. Kg3 {[%clk 0:00:25.2]} 42... Rb2 {[%clk
0:00:44.8]} 43. Nd5 {[%clk 0:00:23.3]} 43... Be5+ {[%clk 0:00:40.3]} 44. Kf3
{[%clk 0:00:20.2]} 44... Kf8 {[%clk 0:00:28.6]} 45. Nd7+ {[%clk 0:00:18.6]}
45... Ke8 {[%clk 0:00:26.2]} 46. Nxe5 {[%clk 0:00:18.5]} 46... f6 {[%clk
0:00:24.8]} 47. Nd3 {[%clk 0:00:14.6]} 47... Kd7 {[%clk 0:00:23.4]} 48. Nxb2
{[%clk 0:00:13.5]} 48... Kd6 {[%clk 0:00:22.6]} 49. Nd3 {[%clk 0:00:12.1]} 49...
Kc6 {[%clk 0:00:20.3]} 50. Ke3 {[%clk 0:00:11.4]} 50... Kb5 {[%clk 0:00:20.2]}
51. Kd4 {[%clk 0:00:10.2]} 51... Kc6 {[%clk 0:00:19.7]} 52. Kc4 {[%clk
0:00:09.1]} 52... Kb7 {[%clk 0:00:19.3]} 53. b5 {[%clk 0:00:08.3]} 53... Kc8
{[%clk 0:00:19.2]} 54. Kc5 {[%clk 0:00:07.5]} 54... Kb7 {[%clk 0:00:19.1]} 55.
b6 {[%clk 0:00:06.5]} 55... Kc8 {[%clk 0:00:19]} 56. Kc6 {[%clk 0:00:05.7]}
56... Kd8 {[%clk 0:00:18.4]} 57. Nc5 {[%clk 0:00:05]} 57... Ke8 {[%clk
0:00:18.3]} 58. b7 {[%clk 0:00:04.1]} 58... Kf7 {[%clk 0:00:18.2]} 59. b8=Q
{[%clk 0:00:03.5]} 59... Kg6 {[%clk 0:00:18.1]} 60. Qf4 {[%clk 0:00:02.3]} 60...
Kh5 {[%clk 0:00:18]} 61. Qg3 {[%clk 0:00:01.4]} 61... g5 {[%clk 0:00:17.9]} 62.
Qg4+ {[%clk 0:00:00.6]} 62... Kg6 {[%clk 0:00:17.3]} 0-1

[Event "Live Chess"]
[Site "Chess.com"]
[Date "2023.05.21"]
[Round "-"]
[White "Pablo_dmp"]
[Black "yeetpizza74"]
[Result "1-0"]
[WhiteElo "1854"]
[BlackElo "465"]
[TimeControl "300"]
[EndTime "1:59:13 PDT"]
[Termination "Pablo_dmp won by checkmate"]

1. e4 {[%clk 0:04:58.8]} 1... c6 {[%clk 0:04:56.5]} 2. d4 {[%clk 0:04:57.2]}
2... d5 {[%clk 0:04:55]} 3. Nc3 {[%clk 0:04:53.4]} 3... Nf6 {[%clk 0:04:48.4]}
4. e5 {[%clk 0:04:51.3]} 4... Ne4 {[%clk 0:04:45.4]} 5. Qf3 {[%clk 0:04:43]}
5... Nxc3 {[%clk 0:04:37.8]} 6. bxc3 {[%clk 0:04:42.9]} 6... e6 {[%clk
0:04:30.1]} 7. Bd3 {[%clk 0:04:31.9]} 7... Be7 {[%clk 0:04:23.2]} 8. Qg4 {[%clk
0:04:25.8]} 8... f6 {[%clk 0:04:07.5]} 9. Qxg7 {[%clk 0:04:18.9]} 9... Rf8
{[%clk 0:03:53.5]} 10. Bxh7 {[%clk 0:04:10.5]} 10... Rf7 {[%clk 0:03:43]} 11.
Bg6 {[%clk 0:04:07.4]} 11... fxe5 {[%clk 0:03:33]} 12. Qxf7+ {[%clk 0:04:07.3]}
12... Kd7 {[%clk 0:03:30.7]} 13. Nf3 {[%clk 0:03:59.4]} 13... exd4 {[%clk
0:03:26.3]} 14. cxd4 {[%clk 0:03:57.8]} 14... Kd6 {[%clk 0:03:19.3]} 15. Bf4+
{[%clk 0:03:54]} 15... e5 {[%clk 0:03:16.5]} 16. Bxe5+ {[%clk 0:03:50.2]} 16...
Kd7 {[%clk 0:03:10.9]} 17. Bf5# {[%clk 0:03:50.1]} 1-0